Cogmind - Beta 16 --- EXPLORER MODE // 2026.01.21 @ 19:16:52 Player: Dylab Result: Destroyed by D-53 Grenadier with Mini Grenade Launcher Performance ------------- Evolutions (0) 0 Regions Visited (2) 400 Robots Destroyed (7) 35 Value Destroyed (159) 159 Prototype IDs (2) 40 Alien Tech Used (0) 0 Bonus (0) 0 TOTAL SCORE: 634 Bonus ------- None Cogmind --------- Core Integrity 0/250 Matter 280/300 Energy 90/100 System Corruption 0% Temperature Cool (0) Movement Core (100) Ox1 Location -10/Mines Parts ------- > --- POWER (1) -------- (None) > --- PROPULSION (2) --- (None) > --- UTILITY (3) ------ Targeting Computer Targeting Computer Utility Shielding > --- WEAPON (2) ------- Grenade Launcher > --- INVENTORY (5) ---- Heat Sink Medium Storage Unit Medium Matter Pod (100) Core Shielding Peak State ------------ > --- POWER ------------ Ion Engine > --- PROPULSION ------- Light Treads Light Treads > --- UTILITY ---------- Targeting Computer Targeting Computer Utility Shielding > --- WEAPON ----------- Medium Laser Assault Rifle > --- INVENTORY -------- Medium Storage Unit Core Shielding [Rating: 8] Favorites ----------- Power Ion Engine Engine Ion Engine Propulsion Light Treads Treads Light Treads Utility Targeting Computer Processor Targeting Computer Protection Utility Shielding Weapon Medium Laser Energy Gun Medium Laser Ballistic Gun Assault Rifle Launcher Grenade Launcher Build | -11 -10 -10 ------- Run | Yrd Mat Min Slots Evolved 1 | . 1 . Power . | . . . Propulsion . | . . . Utility 1 | . 1 . Weapon . | . . . Parts Attached 10 | 8 1 1 Power 1 | 1 . . Engine 1 | 1 . . Core . | . . . Reactor . | . . . Propulsion 2 | 2 . . Treads 2 | 2 . . Leg . | . . . Wheel . | . . . Hover . | . . . Flight . | . . . Utility 3 | 2 1 . Device . | . . . Storage . | . . . Processor 2 | 2 . . Hackware . | . . . Protection 1 | . 1 . Artifact . | . . . Weapon 4 | 3 . 1 Energy Gun 2 | 2 . . Energy Cannon . | . . . Ballistic Gun 1 | 1 . . Ballistic Cannon . | . . . Launcher 1 | . . 1 Special Weapon . | . . . Impact Weapon . | . . . Slashing Weapon . | . . . Piercing Weapon . | . . . Special Melee Weapon . | . . . Unidentified Prototypes . | . . . Parts Lost 5 | . . 5 Power 1 | . . 1 Propulsion 2 | . . 2 Utility . | . . . Weapon 2 | . . 2 Highest Loss Streak 3 | . . 3 To Critical Strikes 1 | . . 1 Average Backups 3 | 1 3 5 Power . | . . . Propulsion . | . . . Utility 3 | 1 3 4 Weapon . | . . 1 Tool/Special . | . . . Unused Backups 4 | . . 4 Power . | . . . Propulsion . | . . . Utility 4 | . . 4 Weapon . | . . . Tool/Special . | . . . Average Slot Usage (%) 94 | . 99 79 Engine 10 | . 12 5 Treads 22 | . 25 14 Processor 25 | . 25 25 Protection 11 | . 11 12 Energy Gun 11 | . 12 11 Ballistic Gun 11 | . 12 9 Peak Build Rating 8 | 7 8 8 Average Rating 7 | 5 7 6 On Entrance 5 | . 7 8 Avg Prop Armor Cover (%) . | . . . Naked Turns . | . . . Heaviest Build 10 | 9 10 10 Greatest Support 40 | 40 40 40 Greatest Overweight (x) 1 | . . 1 Average Overweight (x) . | . . . Largest Inventory Capacity 5 | 5 5 5 Average Capacity 5 | 5 5 5 Most Carried 5 | 3 5 5 Average Carried 3 | 1 3 4 Final Capacity 5 | 5 5 5 Final Carried 5 | 3 5 4 Class Distribution -------------------- 100% | Hacker-Mutant Dominant Class ---------------- Hacker-Mutant | -10/Materials Hacker-Mutant | -10/Mines Resources | -11 -10 -10 ----------- Run | Yrd Mat Min Matter Collected 460 | 172 154 134 Remotely . | . . . Salvage Created 333 | . 143 190 Parts 16 | . 12 4 Haulers Intercepted 1 | . 1 . Recyclers Shooed 1 | . 1 . Parts Field Recycled . | . . . Retrieved Matter . | . . . Parts Self-Destructed . | . . . Prevented . | . . . Parts Restored . | . . . Kills | -11 -10 -10 ------- Run | Yrd Mat Min Combat Hostiles Destroyed 11 | . 2 9 Guns 11 | . 2 9 Classes Destroyed 5 | . 4 1 Worker 1 | . 1 . Tunneler 1 | . 1 . Hauler 1 | . 1 . Grunt 4 | . 2 2 Assembled 7 | . . 7 Best Kill Streak 8 | . 4 8 Combat Bots Only 8 | . 1 8 Max Kills in Single Turn 2 | . 1 2 Gunslinging 1 | . . 1 Exploded . | . . . Melee . | . . . Uniques/NPCs Destroyed . | . . . Combat | -11 -10 -10 -------- Run | Yrd Mat Min Hostile Shots Fired 122 | . 19 103 Missed 38 | . 9 29 Hits 84 | . 10 74 Melee 5 | . . 5 Projectile 79 | . 10 69 AOE 3 | . . 3 Critical Strikes 2 | . . 2 Damage Taken 799 | . 84 715 Core 269 | . 7 262 Absorbed by Shields . | . . . Ignored by Resistances 488 | . 53 435 Core Remaining (%) 100 | 100 . . Volleys Fired 34 | . 12 22 Largest 2 | . 2 2 Hottest 70 | . 70 70 Shots Fired 64 | . 24 40 Gun 63 | . 24 39 Cannon . | . . . Launcher 1 | . . 1 Special . | . . . Kinetic 30 | . 12 18 Thermal 33 | . 12 21 Explosive 1 | . . 1 Electromagnetic . | . . . Robot Hit Streak 25 | . 20 25 Robot Miss Streak 1 | . 1 1 Penetration Max . | . . . Secondary Targets 2 | . . 2 Max Gunslinging Chain 1 | . . 1 Shots Hit Robots 58 | . 22 36 Core Hits 31 | . 9 22 Critical Kills . | . . . Critical Parts Destroyed . | . . . Critical Strikes 2 | . . 2 Burn 2 | . . 2 Melee Attacks . | . . . Impact . | . . . Slashing . | . . . Piercing . | . . . Sneak Attacks . | . . . Combat Hostiles . | . . . Follow-up Attacks . | . . . Damage Inflicted 719 | . 285 434 Guns 699 | . 279 420 Cannons . | . . . Explosions 14 | . . 14 Melee . | . . . Ramming 6 | . 6 . Kinetic 298 | . 128 170 Thermal 401 | . 151 250 Explosive 14 | . . 14 Electromagnetic . | . . . Impact . | . . . Slashing . | . . . Piercing . | . . . Highest Corruption . | . . . Average Corruption . | . . . Corruption Purged . | . . . Corruption Blocked . | . . . Overload Shots . | . . . Overflow Damage . | . . . Projectiles . | . . . Explosions . | . . . Melee . | . . . Knockbacks . | . . . Impact . | . . . Kinetic . | . . . Secondary . | . . . Self-Inflicted Damage . | . . . Shots . | . . . Rammed 1 | . 1 . Targets Rammed 2 | . 2 . Kicked . | . . . Crushed 1 | . 1 . Highest Temperature 118 | . 78 118 Average Temperature 48 | . 25 64 Received Heat Transfer 144 | . 60 84 Siege Activations . | . . . Martial Activations . | . . . Shielding Activations . | . . . Robots Disrupted . | . . . Combat Hostiles . | . . . Robots Corrupted . | . . . Combat Hostiles . | . . . Parts Fried . | . . . Impact Corruptions . | . . . Robots Melted . | . . . Combat Hostiles . | . . . Parts Melted 3 | . . 3 Heat Transferred 1332 | . 444 888 Parts Sabotaged . | . . . Parts Stolen . | . . . Parts Stripped . | . . . Power Chain Reactions . | . . . Alert | -11 -10 -10 ------- Run | Yrd Mat Min Maximum Alert Level . | . . . Low Security (%) 100 | 100 100 100 Level 1 . | . . . Level 2 . | . . . Level 3 . | . . . Level 4 . | . . . Level 5 . | . . . High Security . | . . . Max Security . | . . . Peak Influence 30 | . 25 30 Initial . | . . . Average 2 | . 2 4 Influence Increases 139 | . 71 68 Destroy 0b10 Robot/C 80 | . 40 40 Destroy 0b10 Robot/NC 15 | . 15 . Destroy Leader 12 | . 2 10 Successful Hack 14 | . 14 . Destroy Structure 3 | . . 3 Lose Combat Pursuer 15 | . . 15 Influence Decreases 131 | . 71 60 Time Decay 91 | . 71 20 Lost Part 40 | . . 40 Squads Dispatched 1 | . 1 . Investigation 1 | . 1 . Extermination . | . . . Reinforcement . | . . . Assault . | . . . Garrison . | . . . Intercept . | . . . Searches Triggered . | . . . Construction Impeded . | . . . Haulers Reinforced . | . . . Active Scanning Responses . | . . . Cargo Convoy Interrupts . | . . . Stealth | -11 -10 -10 --------- Run | Yrd Mat Min Distress Signals . | . . . Communications Jammed . | . . . Distress Signals . | . . . Times Spotted 17 | . 3 14 Peak Tracking Total 15 | . 2 15 Tactical Retreats 1 | . . 1 Traps | -11 -10 -10 ------- Run | Yrd Mat Min Traps Triggered 1 | . 1 . Indirectly . | . . . Trap Hack Attempts . | . . . Triggered . | . . . Disarmed . | . . . Reprogrammed . | . . . Reused . | . . . Traps Extracted . | . . . Installed . | . . . Triggered . | . . . Machines | -11 -10 -10 ---------- Run | Yrd Mat Min Machines Disabled . | . . . Max in Single Turn . | . . . Machines Repaired . | . . . Machines Dismantled . | . . . Machines Sabotaged . | . . . Overloaded Fab Kills . | . . . Hacking | -11 -10 -10 --------- Run | Yrd Mat Min Machines Accessed 5 | . 5 . Terminals 4 | . 4 . Fabricators . | . . . Repair Stations 1 | . 1 . Recycling Units . | . . . Scanalyzers . | . . . Garrison Access . | . . . Total Hacks 12 | . 12 . Successful 6 | . 6 . Failed 6 | . 6 . Catastrophic . | . . . Database Lockouts . | . . . Manual 6 | . 6 . Terminals 11 | . 11 . Fabricators . | . . . Repair Stations 1 | . 1 . Recycling Units . | . . . Scanalyzers . | . . . Garrison Access . | . . . Terminal Hacks 6 | . 6 . Robot Analysis 1 | . 1 . Prototype ID Bank 1 | . 1 . Branch Access Points 1 | . 1 . Scanalyzer Index 1 | . 1 . Security Status 1 | . 1 . Hauler Manifests 1 | . 1 . Fabricator Hacks . | . . . Repair Station Hacks . | . . . Recycling Unit Hacks . | . . . Scanalyzer . | . . . Garrison Access Hacks . | . . . Unauthorized Hacks . | . . . Terminals . | . . . Fabricators . | . . . Repair Stations . | . . . Recycling Units . | . . . Scanalyzers . | . . . Garrison Access . | . . . Data Cores Recovered . | . . . Used . | . . . Hacking Detections 3 | . 3 . Full Trace Events 1 | . 1 . Feedback Events . | . . . Feedback Blocked . | . . . Robot Schematics Acquired . | . . . Robots Built . | . . . Authchips . | . . . Time . | . . . Total Robot Build Rating . | . . . Part Schematics Acquired . | . . . Parts Built . | . . . Authchips . | . . . Time . | . . . Total Part Build Rating . | . . . Part Studies Acquired . | . . . Parts Repaired . | . . . Time . | . . . Parts Recycled . | . . . Recycled Matter . | . . . Retrieved Matter . | . . . Retrieved Components . | . . . Parts Scanalyzed . | . . . Part Schematics Acquired . | . . . Parts Damaged . | . . . Bothacking | -11 -10 -10 ------------ Run | Yrd Mat Min Used RIF Installer . | . . . Robots Hacked . | . . . Non-combat . | . . . Combat . | . . . Robot Hacks Applied . | . . . Relay Couplers Released . | . . . Fabnet Peak Effective % . | . . . Robots Rewired . | . . . Allies Hacked . | . . . Hacks Repelled . | . . . Allies | -11 -10 -10 -------- Run | Yrd Mat Min Total Allies . | . . . Largest Group . | . . . Highest-Rated Group . | . . . Highest-Rated Ally . | . . . Total Orders . | . . . Ally Attacks . | . . . Total Damage . | . . . Kills . | . . . Allies Corrupted . | . . . Allies Melted . | . . . Intel | -11 -10 -10 ------- Run | Yrd Mat Min Active Infowar (turns) . | . . . Robot Analysis Total 1 | . 1 . Derelict Logs Recovered . | . . . Drone Launches . | . . . Drone Recoveries . | . . . Exploration | -11 -10 -10 ------------- Run | Yrd Mat Min Turns Passed 631 | 80 414 137 Spaces Moved 353 | 47 230 76 Core 59 | 8 . 51 Treads 294 | 39 230 25 Legs . | . . . Wheels . | . . . Hover . | . . . Flight . | . . . Fastest Speed 50 | 50 160 50 Average Speed 144 | 141 160 97 Slowest Speed 160 | 160 160 160 Overloaded Moves . | . . . Propulsion Burnouts . | . . . Robots Hopped . | . . . Potential Cave-ins . | . . . Cave-ins Triggered . | . . . Exploration Rate (%) 24 | 4 45 23 Regions Visited 2 Branch Regions 1 Pre-discovered Areas . | . . . Known Exits Taken 2 | 1 1 . Unknown Exits Taken . | . . . Scrap Searched . | . . . Spaces Dug . | . . . Terrain Destroyed 6 | . . 6 Melee . | . . . Projectile . | . . . AOE 6 | . . 6 Terrain Rammed . | . . . Walls Destroyed . | . . . Machines Disabled . | . . . Actions | -11 -10 -10 --------- Run | Yrd Mat Min Total 407 | 57 251 99 Wait 4 | . 4 . Move 351 | 46 229 76 Hop . | . . . Pick Up 6 | 3 3 . Fast Attach 7 | 7 . . Attach 2 | . 1 1 Detach . | . . . Swap 1 | 1 . . Drop . | . . . Fire 34 | . 12 22 Melee . | . . . Ram . | . . . Kick . | . . . Crush 2 | . 2 . Escape Stasis . | . . . Rewire . | . . . Trap . | . . . Miscellaneous . | . . . Route ------- -11/Scrapyard -10/Materials (discovered 2 exits: *Min x2) -10/Mines History --------- Turn | Location | Event 3 | -11/Scrapyard | Identified exit to Materials 3 | -11/Scrapyard | Discovered exit to Materials (range 15) 81 | -11/Scrapyard | Entered Materials 81 | -10/Materials | Evolved 1 slot: Utility x1 100 | -10/Materials | Identified exit to Mines 305 | -10/Materials | Build established: Hacker-Mutant 495 | -10/Materials | Entered Mines 528 | -10/Mines | Assembled infested the area 564 | -10/Mines | Core integrity fell below 50% 601 | -10/Mines | Destroyed 8 combat bots 604 | -10/Mines | Core integrity fell below 20% 605 | -10/Mines | Lost 3 parts (1p2n) 632 | -10/Mines | Destroyed by D-53 Grenadier with Mini Grenade Launcher Last Messages --------------- 00587_ Acquired 91 matter. 00592_ K-01 Serf collects debris. 00593_ U-05 Engineer lays Concrete. 00596_ K-01 Serf collects debris. 00596_ U-05 Engineer lays Concrete. 00598_ K-01 Serf collects debris. 00600_ G-47 Trooper suffers critical hit (Burn). 00605_ Assault Rifle destroyed. 00610_ Aluminum Leg melted. 00610_ Lgt. Nuclear Core melted. 00610_ Imp. Heat Sink melted. 00610_ G-47 Trooper destroyed. 00612_ K-01 Serf collects debris. 00614_ Acquired 1 matter. 00619_ K-01 Serf collects debris. 00624_ U-05 Engineer lays Concrete. 00629_ Med. Laser destroyed. 00630_ U-05 Engineer lays Concrete. 00630_ U-05 Engineer destroyed. 00630_ K-01 Serf collects debris. Map ----- +----------------------------------------------------+ | ?????????????## ####????????????????? | | ?????????????# ^ # #????????????????? | | ?????????????# # # #????????????????? | | ?????????????# ^# #????????????????? | | ?????????????# # ## #????###########?? | | ?????????????# ^ #????# #?? | | ?????????????# ^ #????# #?? | | ?????????????########## ###### #?? | | ??????????????????????# ##*[ """ ""????? | | ?????????????????###### ##=%## """ ""????? | | ?????????????????# %=## """ ""????? | | ?????????????????# t ## ??? | | ?????????????????# ###%############# ???? | | ?????????????????#% #?#%###??????????????? | | ?????????????????# ### ##?????????????? | | ?????????????????# ## % #?????????????? | | ????????????????## # #?????????????? | | ???????????????## ##?????????????? | | ?????????????### ##??????????????? | | ????????????## ####????????????? | | ????????????# ##???????????? | | ???????????# #???????????? | | ???????????# ### ##### #?????? | | ???????????## #??## ! #?????? | | ????????????# ????# %= #?????? | | ??????????? ????## = @ #######?????? | | ??????????## ?????# #??????????? | | ???????????# ?? < ##??????????? | | ???????????# k % #???????????? | | ???????????## ##???????????? | | ????????????## ## ##????????????? | | ?????????????## ## # ##?????????????? | | ??????????????#### #??????????????? | | ?????????????????# d ##??????????????? | | ?????????????????# d ##???????????????? | | ?????????????????? ?????????????????? | | ?????????????????# ?????????????????? | | ?????????????????# ?????????????????? | | ??????????????????# ?????????????????? | | ????????????????????? ??????????????????? | | ?????????????????????????????????????????? | | ?????????????????????????????????????????? | | ?????????????????????????????????????????? | | ?????????????????????????????????????????? | | ?????????????????????????????????????????? | | ?????????????????????????????????????????? | | ?????????????????????????????????????????? | | ?????????????????????????????????????????? | | ?????????????????????????????????????????? | | ?????????????????????????????????????????? | +----------------------------------------------------+ Best States ------------- Heat Dissipation 25 Energy Generation 10 Energy Capacity 250 Matter Stores 300 Matter Capacity 300 Sight Range 16 Terrain Scan Density 10 Resistance: KI 35 Resistance: TH 35 Resistance: EX 35 Resistance: EM 35 Resistance: I 35 Resistance: S 35 Resistance: P 35 Utility Shielding 33 Evasion (%) 50 Targeting Accuracy 10 Recoil Reduction 2 Offensive Hacking 20 Item Schematics ----------------- None Robot Schematics ------------------ None Fabricated ------------ Nothing Repaired ---------- Nothing Studied --------- None Alien Tech Used ----------------- None Achievements -------------- None Challenges ------------ None Game ------ Seed CoreDiametricGravjet Manual? 0 Play Time 00:09:03 Cumulative 85.3 hours Start 2026.01.21 @ 19:02:35 End 2026.01.21 @ 19:16:52 Sessions 1 Manual Loads 0 Difficulty Explorer Special Mode None Game No. 61 Rogue 1 Adventurer 2 Explorer 58 Win Type - Total 1 Types 1/0/0/0/0/0/0/0/0/0 Lore% 19 Gallery% 47 Achievement% 31 Wizard Run 0 Options --------- Layout 0 ASCII 0 Keyboard 0 Movement Numpad Keybinds 1 Fullscreen 2 Font 24/Crisp Map View 38x28 Zoom Use 100% Tactical HUD 1 Map Filters NONE Filters NONE Steam 1 RUN: 53c8acbf-d833-489a-b1c2-4ab7713c1cd5